[Event "XXI Torredembarra Open 2019"]
[Site "Torredembarra"]
[Date "2019.07.07"]
[Round "2.1"]
[White "Ribes Cabrera, Jordi"]
[Black "Farran Martos, Francesc X."]
[Result "0-1"]
[ECO "D40"]
[WhiteElo "1877"]
[BlackElo "2432"]
[Annotator "NA"]
[PlyCount "78"]
[EventDate "2019.07.06"]
[EventType "swiss"]
[EventCountry "ESP"]
[SourceTitle "playchess.com"]
[Source "ChessBase"]
[SourceQuality "1"]
[TimeControl "5400+30"]

1. d4 {[%emt 0:03:35]} Nf6 {[%emt 0:00:00]} 2. c4 {[%emt 0:00:14]} e6 {[%emt 0:00:00]} 3. Nc3 {[%emt 0:00:12]} d5 {[%emt 0:00:00]} 4. Nf3 {[%emt 0:00:22]} c5 {[%emt 0:00:47]} 5. dxc5 {[%emt 0:01:01]} Bxc5 {[%emt 0:00:21]} 6. e3 {[%emt 0:00:49]} O-O {[%emt 0:00:55]} 7. Be2 {[%emt 0:02:00]} Nc6 {[%emt 0:02:10]} 8. O-O {[%emt 0:00:27]} a6 {[%emt 0:00:47]} 9. a3 {[%emt 0:09:19]} Ba7 {[%emt 0:12:24]} 10. b4 {[%emt 0:00:00]} Qc7 {[%emt 0:09:30]} 11. Qb3 {[%emt 0:08:55]} dxc4 {[%emt 0:01:37]} 12. Bxc4 {[%emt 0:00:38]} b5 {[%emt 0:06:33]} 13. Be2 {[%emt 0:00:00]} e5 {[%emt 0:04:20]} 14. e4 {[%emt 0:00:00]} Nd4 {[%emt 0:14:48]} 15. Nxd4 {[%emt 0:00:00]} Bxd4 {[%emt 0:00:32]} 16. Bb2 {[%emt 0:00:00]} Be6 {[%emt 0:03:22]} 17. Nd5 {[%emt 0:00:00]} Nxd5 {[%emt 0:02:57]} 18. exd5 {[%emt 0:00:00]} Bxb2 {[%emt 0:01:42]} 19. Qxb2 {[%emt 0:00:00]} Bxd5 {[%emt 0:00:07]} 20. Rac1 {[%emt 0:00:21]} Bc4 {[%emt 0:09:49]} 21. Bxc4 {[%emt 0:02:41]} bxc4 {[%emt 0:02:09]} 22. Rfe1 {[%emt 0:03:08]} Rfe8 {[%emt 0:06:46]} 23. Re4 {[%emt 0:01:47]} Rad8 {[%emt 0:01:52]} 24. Qe2 {[%emt 0:06:43]} c3 {[%emt 0:06:56]} 25. Rc4 {[%emt 0:00:00]} Qe7 {[%emt 0:03:01]} 26. R4xc3 {[%emt 0:01:02]} Rd6 {[%emt 0:00:55]} 27. Rc7 {[%emt 0:07:03]} Qg5 {[%emt 0:03:08]} 28. Qc4 {[%emt 0:03:03]} Qf6 {[%emt 0:01:31]} 29. Rc6 {[%emt 0:04:22]} Red8 {[%emt 0:01:02]} 30. g3 {[%emt 0:03:21]} g6 {[%emt 0:02:44]} 31. Qxa6 {[%emt 0:01:31]} Rd1+ {[%emt 0:00:38]} 32. Rxd1 {[%emt 0:01:29]} Rxd1+ {[%emt 0:00:01]} 33. Kg2 {[%emt 0:00:16]} Qe7 {[%emt 0:01:52]} 34. Rc8+ {[%emt 0:04:07]} Kg7 {[%emt 0:00:13]} 35. Qc4 {[%emt 0:00:54]} Ra1 {[%emt 0:01:13]} 36. Rc7 {[%emt 0:02:34]} Qf6 {[%emt 0:01:33]} 37. Ra7 {[%emt 0:02:54]} Qf5 {[%emt 0:00:48]} 38. Qd5 {[%emt 0:01:45]} Re1 {[%emt 0:00:00]} 39. Qf3 {[%emt 0:01:56]} Rg1+ {[%emt 0:00:00] Qd5 Rd1} 0-1

[Event "XXI Torredembarra Open 2019"]
[Site "Torredembarra"]
[Date "2019.07.07"]
[Round "2.2"]
[White "Dardha, Daniel"]
[Black "Sanz Bastos, Fernando"]
[Result "1-0"]
[ECO "A80"]
[WhiteElo "2420"]
[BlackElo "1874"]
[Annotator "NA"]
[PlyCount "55"]
[EventDate "2019.07.06"]
[EventType "swiss"]
[EventCountry "ESP"]
[SourceTitle "playchess.com"]
[Source "ChessBase"]
[SourceQuality "1"]
[TimeControl "5400+30"]

1. d4 {[%emt 0:00:00]} f5 {[%emt 0:00:00]} 2. Bg5 {[%emt 0:00:13]} g6 {[%emt 0:00:38]} 3. Nc3 {[%emt 0:00:13]} Bg7 {[%emt 0:00:15]} 4. e4 {[%emt 0:00:09]} fxe4 {[%emt 0:00:59]} 5. Nxe4 {[%emt 0:00:09]} d5 {[%emt 0:00:27]} 6. Nc5 {[%emt 0:00:08]} b6 {[%emt 0:03:10]} 7. Nb3 {[%emt 0:00:24]} Nf6 {[%emt 0:01:03]} 8. Nf3 {[%emt 0:00:23]} Ne4 {[%emt 0:02:27]} 9. Bh4 {[%emt 0:02:47]} O-O {[%emt 0:03:13]} 10. Be2 {[%emt 0:00:28]} c5 {[%emt 0:02:05]} 11. c3 {[%emt 0:01:50]} Nc6 {[%emt 0:03:11]} 12. O-O {[%emt 0:00:45]} Qd6 {[%emt 0:09:56]} 13. c4 {[%emt 0:12:02]} e6 {[%emt 0:08:15]} 14. cxd5 {[%emt 0:01:52]} exd5 {[%emt 0:00:26]} 15. dxc5 {[%emt 0:00:10]} bxc5 {[%emt 0:00:55]} 16. Nfd2 {[%emt 0:01:07]} Nxd2 {[%emt 0:05:31]} 17. Bg3 {[%emt 0:02:46]} Be5 {[%emt 0:07:23]} 18. Qxd2 {[%emt 0:01:07]} Bxg3 {[%emt 0:00:12]} 19. hxg3 {[%emt 0:03:04]} Rd8 {[%emt 0:04:34]} 20. Rfd1 {[%emt 0:01:19]} Qe7 {[%emt 0:04:40]} 21. Bf3 {[%emt 0:05:00]} Be6 {[%emt 0:00:48]} 22. Re1 {[%emt 0:00:37]} Qd6 {[%emt 0:04:25]} 23. Nxc5 {[%emt 0:00:10]} Qxc5 {[%emt 0:02:06]} 24. Rxe6 {[%emt 0:00:07]} Nd4 {[%emt 0:00:12]} 25. Rc1 {[%emt 0:00:36]} Nxf3+ {[%emt 0:00:13]} 26. gxf3 {[%emt 0:00:19]} Qf8 {[%emt 0:01:35]} 27. Rc7 {[%emt 0:01:19]} Qxf3 {[%emt 0:01:16]} 28. Qd4 {[%emt 0:00:28]} 1-0

[Event "XXI Torredembarra Open 2019"]
[Site "Torredembarra"]
[Date "2019.07.07"]
[Round "2.3"]
[White "Skielnik, Joseph J"]
[Black "Lacasa Diaz, Jose Antonio"]
[Result "0-1"]
[ECO "B13"]
[WhiteElo "1858"]
[BlackElo "2391"]
[Annotator "NA"]
[PlyCount "136"]
[EventDate "2019.07.06"]
[EventType "swiss"]
[EventCountry "ESP"]
[SourceTitle "playchess.com"]
[Source "ChessBase"]
[SourceQuality "1"]
[TimeControl "5400+30"]

1. d4 {[%emt 0:00:00]} d5 {[%emt 0:00:00]} 2. Bf4 {[%emt 0:00:00]} c5 {[%emt 0:01:10]} 3. e3 {[%emt 0:00:48]} cxd4 {[%emt 0:00:00]} 4. exd4 {[%emt 0:00:07]} Nc6 {[%emt 0:00:00]} 5. c3 {[%emt 0:01:13]} Nf6 {[%emt 0:00:00]} 6. Bd3 {[%emt 0:01:12]} Bg4 {[%emt 0:00:00]} 7. Qb3 {[%emt 0:04:23]} Qd7 {[%emt 0:00:00]} 8. f3 {[%emt 0:11:02]} Bh5 {[%emt 0:00:07]} 9. Ne2 {[%emt 0:05:03]} e6 {[%emt 0:00:09]} 10. Nd2 {[%emt 0:03:12]} Bg6 {[%emt 0:00:38]} 11. Bb5 {[%emt 0:09:23]} Bd6 {[%emt 0:01:55]} 12. O-O {[%emt 0:05:53]} a6 {[%emt 0:00:52]} 13. Bxc6 {[%emt 0:06:48]} bxc6 {[%emt 0:01:10]} 14. Bxd6 {[%emt 0:00:40]} Qxd6 {[%emt 0:00:09]} 15. Qa3 {[%emt 0:01:38]} Qxa3 {[%emt 0:02:20]} 16. bxa3 {[%emt 0:00:03]} h6 {[%emt 0:00:27]} 17. Nb3 {[%emt 0:02:42]} Nd7 {[%emt 0:00:39]} 18. Nf4 {[%emt 0:04:31]} Bh7 {[%emt 0:01:08]} 19. Rfe1 {[%emt 0:01:16]} O-O {[%emt 0:00:42]} 20. Rac1 {[%emt 0:01:08]} g5 {[%emt 0:07:44]} 21. Nh3 {[%emt 0:02:02]} Rfc8 {[%emt 0:06:08]} 22. c4 {[%emt 0:02:56]} Bd3 {[%emt 0:01:13]} 23. cxd5 {[%emt 0:02:46]} cxd5 {[%emt 0:00:11]} 24. Nf2 {[%emt 0:03:15]} Bb5 {[%emt 0:05:27]} 25. Ng4 {[%emt 0:05:12]} Kg7 {[%emt 0:00:28]} 26. Ne3 {[%emt 0:00:35]} Nb6 {[%emt 0:04:36]} 27. Kf2 {[%emt 0:07:01]} Na4 {[%emt 0:02:12]} 28. Rxc8 {[%emt 0:06:59]} Rxc8 {[%emt 0:00:56]} 29. Rc1 {[%emt 0:00:53]} Rxc1 {[%emt 0:01:48]} 30. Nxc1 {[%emt 0:00:02]} Nc3 {[%emt 0:00:22]} 31. Ke1 {[%emt 0:03:41]} f5 {[%emt 0:04:17]} 32. g3 {[%emt 0:02:33]} Kf6 {[%emt 0:00:33]} 33. f4 {[%emt 0:00:20]} gxf4 {[%emt 0:10:49]} 34. gxf4 {[%emt 0:00:02]} Bc4 {[%emt 0:00:28]} 35. Nb3 {[%emt 0:03:49]} Nxa2 {[%emt 0:04:58]} 36. Nxc4 {[%emt 0:00:25]} dxc4 {[%emt 0:00:06]} 37. Na5 {[%emt 0:00:53]} Nc1 {[%emt 0:03:53]} 38. Kd2 {[%emt 0:01:30]} Nd3 {[%emt 0:00:40]} 39. Ke3 {[%emt 0:00:23]} Nb2 {[%emt 0:00:24]} 40. Kd2 {[%emt 0:00:25]} Ke7 {[%emt 0:01:18]} 41. Kc3 {[%emt 0:01:59]} Nd3 {[%emt 0:00:30]} 42. Nxc4 {[%emt 0:00:24]} Nxf4 {[%emt 0:00:09]} 43. Kd2 {[%emt 0:00:46]} Nd5 {[%emt 0:01:14]} 44. Kd3 {[%emt 0:00:32]} Kf6 {[%emt 0:00:21]} 45. Ne5 {[%emt 0:00:14]} Kg5 {[%emt 0:00:28]} 46. Nf7+ {[%emt 0:00:37]} Kg6 {[%emt 0:03:16]} 47. Ne5+ {[%emt 0:00:08]} Kf6 {[%emt 0:00:07]} 48. Nd7+ {[%emt 0:00:13]} Kg5 {[%emt 0:00:24]} 49. Nc5 {[%emt 0:00:19]} Nc7 {[%emt 0:00:07]} 50. Ke3 {[%emt 0:00:24]} Kg4 {[%emt 0:00:08]} 51. Kf2 {[%emt 0:01:56]} Nb5 {[%emt 0:16:17]} 52. Nxe6 {[%emt 0:00:10]} Nxa3 {[%emt 0:00:07]} 53. Nc5 {[%emt 0:00:42]} a5 {[%emt 0:00:09]} 54. Nb3 {[%emt 0:00:49]} Nc4 {[%emt 0:00:13]} 55. Nc5 {[%emt 0:00:21]} Nb6 {[%emt 0:00:43]} 56. h3+ {[%emt 0:00:52]} Kxh3 {[%emt 0:00:37]} 57. Kf3 {[%emt 0:00:06]} Nd5 {[%emt 0:00:10]} 58. Na4 {[%emt 0:00:50]} Kh4 {[%emt 0:00:18]} 59. Nc5 {[%emt 0:00:11]} Kg5 {[%emt 0:00:17]} 60. Ne6+ {[%emt 0:00:16]} Kf6 {[%emt 0:00:14]} 61. Nc5 {[%emt 0:00:11]} h5 {[%emt 0:01:32]} 62. Nd7+ {[%emt 0:00:40]} Kg5 {[%emt 0:00:27]} 63. Nc5 {[%emt 0:00:10]} h4 {[%emt 0:00:07]} 64. Ne6+ {[%emt 0:00:09]} Kh5 {[%emt 0:02:35]} 65. Ng7+ {[%emt 0:01:28]} Kg6 {[%emt 0:00:20]} 66. Ne6 {[%emt 0:00:19]} a4 {[%emt 0:00:12]} 67. Nc5 {[%emt 0:00:17]} a3 {[%emt 0:00:06]} 68. Nb3 {[%emt 0:00:23]} a2 {[%emt 0:00:22]} 0-1

[Event "XXI Torredembarra Open 2019"]
[Site "Torredembarra"]
[Date "2019.07.07"]
[Round "2.4"]
[White "Djuric, Stefan"]
[Black "Campas Altisent, Adria"]
[Result "1-0"]
[ECO "B93"]
[WhiteElo "2368"]
[BlackElo "1856"]
[Annotator "NA"]
[PlyCount "71"]
[EventDate "2019.07.06"]
[EventType "swiss"]
[EventCountry "ESP"]
[SourceTitle "playchess.com"]
[Source "ChessBase"]
[SourceQuality "1"]
[TimeControl "5400+30"]

1. e4 {[%emt 0:02:45]} c5 {[%emt 0:00:12]} 2. Nf3 {[%emt 0:00:02]} d6 {[%emt 0:00:27]} 3. d4 {[%emt 0:00:25]} cxd4 {[%emt 0:00:07]} 4. Nxd4 {[%emt 0:00:22]} Nf6 {[%emt 0:00:06]} 5. Nc3 {[%emt 0:00:01]} a6 {[%emt 0:00:08]} 6. f4 {[%emt 0:00:13]} e5 {[%emt 0:00:29]} 7. Nf3 {[%emt 0:00:05]} Nbd7 {[%emt 0:07:13]} 8. a4 {[%emt 0:02:10]} b6 {[%emt 0:00:27]} 9. Bc4 {[%emt 0:00:23]} Be7 {[%emt 0:13:39]} 10. g4 {[%emt 0:01:06]} Bb7 {[%emt 0:08:36]} 11. fxe5 {[%emt 0:11:48]} Nxe5 {[%emt 0:02:27]} 12. Nxe5 {[%emt 0:01:20]} dxe5 {[%emt 0:00:25]} 13. Qe2 {[%emt 0:01:29]} O-O {[%emt 0:21:15]} 14. g5 {[%emt 0:01:01]} Ne8 {[%emt 0:00:56]} 15. h4 {[%emt 0:09:54]} Nc7 {[%emt 0:01:54]} 16. Be3 {[%emt 0:03:36]} Ne6 {[%emt 0:00:54]} 17. Bxe6 {[%emt 0:04:01]} fxe6 {[%emt 0:00:08]} 18. Qc4 {[%emt 0:01:45]} Qc8 {[%emt 0:00:35]} 19. Qxc8 {[%emt 0:00:42]} Raxc8 {[%emt 0:00:11]} 20. O-O-O {[%emt 0:04:00]} Bb4 {[%emt 0:02:36]} 21. Na2 {[%emt 0:03:09]} Bc5 {[%emt 0:06:08]} 22. Bxc5 {[%emt 0:01:51]} Rxc5 {[%emt 0:00:19]} 23. Nc3 Rc4 {[%emt 0:02:15]} 24. Rd6 {[%emt 0:07:02]} Bxe4 {[%emt 0:01:54]} 25. Nxe4 {[%emt 0:01:20]} Rxe4 {[%emt 0:00:11]} 26. b3 {[%emt 0:00:05]} b5 {[%emt 0:02:57]} 27. a5 {[%emt 0:01:36]} Re2 {[%emt 0:01:03]} 28. Kb2 {[%emt 0:00:29]} Rc8 {[%emt 0:00:32]} 29. Rc1 {[%emt 0:00:58]} Kf7 {[%emt 0:00:27]} 30. Rxa6 {[%emt 0:00:32]} e4 {[%emt 0:00:25]} 31. Rb6 {[%emt 0:01:01]} e5 {[%emt 0:02:05]} 32. a6 {[%emt 0:02:37]} Rd2 {[%emt 0:01:43]} 33. a7 {[%emt 0:00:19]} Ra8 {[%emt 0:00:37]} 34. Ra1 {[%emt 0:04:13]} e3 {[%emt 0:02:20]} 35. Rb8 {[%emt 0:00:46]} Rd8 {[%emt 0:00:07]} 36. Rxd8 {[%emt 0:00:29]} 1-0

[Event "XXI Torredembarra Open 2019"]
[Site "Torredembarra"]
[Date "2019.07.07"]
[Round "2.5"]
[White "Madria, Joseph John"]
[Black "Pogorelov, Ruslan"]
[Result "0-1"]
[ECO "B30"]
[WhiteElo "1838"]
[BlackElo "2347"]
[Annotator "NA"]
[PlyCount "44"]
[EventDate "2019.07.06"]
[EventType "swiss"]
[EventCountry "ESP"]
[SourceTitle "playchess.com"]
[Source "ChessBase"]
[SourceQuality "1"]
[TimeControl "5400+30"]

1. e4 {[%emt 0:00:00]} c5 {[%emt 0:00:00]} 2. Nf3 {[%emt 0:00:00]} Nc6 {[%emt 0:00:00]} 3. Bb5 {[%emt 0:00:28]} Qc7 {[%emt 0:00:53]} 4. Bxc6 {[%emt 0:02:18]} Qxc6 {[%emt 0:00:14]} 5. Nc3 {[%emt 0:01:45]} e6 {[%emt 0:00:11]} 6. O-O {[%emt 0:01:36]} a6 {[%emt 0:00:19]} 7. Re1 {[%emt 0:03:24]} Be7 {[%emt 0:01:23]} 8. d4 {[%emt 0:03:39]} cxd4 {[%emt 0:00:06]} 9. Qxd4 {[%emt 0:01:53]} Kf8 {[%emt 0:00:47]} 10. Bf4 {[%emt 0:05:23]} d6 {[%emt 0:07:44]} 11. Bg3 {[%emt 0:06:25]} e5 {[%emt 0:04:25]} 12. Qd3 {[%emt 0:05:16]} Be6 {[%emt 0:00:43]} 13. Rad1 {[%emt 0:04:21]} Rc8 {[%emt 0:01:16]} 14. Rd2 {[%emt 0:08:04]} g6 {[%emt 0:09:05]} 15. Bh4 {[%emt 0:10:51]} f6 {[%emt 0:02:42]} 16. Red1 {[%emt 0:04:01]} Kg7 {[%emt 0:03:14]} 17. Ne1 {[%emt 0:02:31]} h5 {[%emt 0:04:48]} 18. Bg3 {[%emt 0:12:57]} h4 {[%emt 0:00:20]} 19. Nd5 {[%emt 0:06:32]} Bxd5 {[%emt 0:01:16]} 20. exd5 {[%emt 0:01:18]} Qd7 {[%emt 0:02:00]} 21. Bxe5 {[%emt 0:03:55]} fxe5 {[%emt 0:00:09]} 22. Nf3 {[%emt 0:04:50]} h3 {[%emt 0:00:20]} 0-1

[Event "XXI Torredembarra Open 2019"]
[Site "Torredembarra"]
[Date "2019.07.07"]
[Round "2.6"]
[White "Gonzalez Rodriguez, Jorge A."]
[Black "Ortega Lopez, Manuel"]
[Result "1-0"]
[ECO "A34"]
[WhiteElo "2201"]
[BlackElo "1833"]
[Annotator "NA"]
[PlyCount "44"]
[EventDate "2019.07.06"]
[EventType "swiss"]
[EventCountry "ESP"]
[SourceTitle "playchess.com"]
[Source "ChessBase"]
[SourceQuality "1"]
[TimeControl "5400+30"]

1. c4 {[%emt 0:04:44]} e5 {[%emt 0:00:09]} 2. Nc3 {[%emt 0:00:05]} c5 {[%emt 0:02:15]} 3. g3 {[%emt 0:00:10]} Nf6 {[%emt 0:01:38]} 4. Bg2 {[%emt 0:00:14]} Na6 {[%emt 0:00:37]} 5. d3 {[%emt 0:00:14]} Nc7 {[%emt 0:02:42]} 6. Bg5 {[%emt 0:00:13]} Be7 {[%emt 0:00:59]} 7. Bxf6 {[%emt 0:00:08]} Bxf6 {[%emt 0:01:21]} 8. e3 {[%emt 0:00:12]} O-O {[%emt 0:00:35]} 9. Nge2 {[%emt 0:00:09]} Rb8 {[%emt 0:00:55]} 10. O-O {[%emt 0:04:09]} g6 {[%emt 0:03:57]} 11. Rb1 {[%emt 0:02:49]} a6 {[%emt 0:03:23]} 12. Qd2 {[%emt 0:03:10]} Bg7 {[%emt 0:04:14]} 13. b4 {[%emt 0:01:52]} cxb4 {[%emt 0:04:20]} 14. Rxb4 {[%emt 0:01:46]} b5 {[%emt 0:07:56]} 15. cxb5 {[%emt 0:04:09]} Nxb5 {[%emt 0:05:12]} 16. a4 {[%emt 0:01:33]} Qa5 {[%emt 0:06:58]} 17. Rfb1 {[%emt 0:00:13]} Nxc3 {[%emt 0:04:27]} 18. Rxb8 {[%emt 0:00:12]} Nxe2+ {[%emt 0:00:06]} 19. Qxe2 {[%emt 0:00:07]} Qxa4 {[%emt 0:01:04]} 20. Rc1 {[%emt 0:00:17]} Qa3 {[%emt 0:04:38]} 21. Rcxc8 {[%emt 0:00:19]} Rxc8 {[%emt 0:00:12]} 22. Rxc8+ {[%emt 0:00:02]} Bf8 {[%emt 0:00:00]} 1-0

[Event "XXI Torredembarra Open 2019"]
[Site "Torredembarra"]
[Date "2019.07.07"]
[Round "2.7"]
[White "Girona Rovira, Albert"]
[Black "Mateos Rozas, Miguel Angel"]
[Result "0-1"]
[ECO "E91"]
[WhiteElo "1817"]
[BlackElo "2194"]
[Annotator "NA"]
[PlyCount "92"]
[EventDate "2019.07.06"]
[EventType "swiss"]
[EventCountry "ESP"]
[SourceTitle "playchess.com"]
[Source "ChessBase"]
[SourceQuality "1"]
[TimeControl "5400+30"]

1. d4 {[%emt 0:00:00]} Nf6 {[%emt 0:00:00]} 2. c4 {[%emt 0:00:07]} g6 {[%emt 0:01:19]} 3. Nc3 {[%emt 0:00:35]} Bg7 {[%emt 0:00:19]} 4. Nf3 {[%emt 0:00:21]} O-O {[%emt 0:00:58]} 5. e4 {[%emt 0:00:52]} d6 {[%emt 0:00:17]} 6. Be2 {[%emt 0:00:55]} b6 {[%emt 0:03:38]} 7. O-O {[%emt 0:00:50]} Bb7 {[%emt 0:00:09]} 8. d5 {[%emt 0:05:37]} Nbd7 {[%emt 0:03:33]} 9. Be3 {[%emt 0:06:18]} e5 {[%emt 0:13:13]} 10. Nd2 {[%emt 0:04:10]} Qe7 {[%emt 0:02:56]} 11. b4 {[%emt 0:07:06]} Ne8 {[%emt 0:02:07]} 12. Qc2 {[%emt 0:04:27]} a5 {[%emt 0:07:18]} 13. a3 {[%emt 0:03:03]} f5 {[%emt 0:00:30]} 14. f3 {[%emt 0:00:36]} Bc8 {[%emt 0:05:40]} 15. Nb3 {[%emt 0:05:29]} fxe4 {[%emt 0:13:29]} 16. fxe4 {[%emt 0:01:00]} Rxf1+ {[%emt 0:00:37]} 17. Rxf1 {[%emt 0:00:54]} axb4 {[%emt 0:00:08]} 18. axb4 {[%emt 0:00:18]} Ndf6 {[%emt 0:00:16]} 19. h3 {[%emt 0:06:06]} h5 {[%emt 0:08:22]} 20. c5 {[%emt 0:09:51]} bxc5 {[%emt 0:00:26]} 21. bxc5 {[%emt 0:00:13]} Kh7 {[%emt 0:01:00]} 22. c6 {[%emt 0:03:42]} Bh6 {[%emt 0:02:59]} 23. Bxh6 {[%emt 0:07:13]} Kxh6 {[%emt 0:00:08]} 24. Qd2+ {[%emt 0:00:56]} Kg7 {[%emt 0:04:02]} 25. Ra1 {[%emt 0:01:48]} Rxa1+ {[%emt 0:03:04]} 26. Nxa1 {[%emt 0:00:14]} Nh7 {[%emt 0:00:16]} 27. Nb3 {[%emt 0:01:56]} Qh4 {[%emt 0:00:32]} 28. Kf1 {[%emt 0:09:55]} Qg3 {[%emt 0:07:16]} 29. Qe1 {[%emt 0:02:09]} Qe3 {[%emt 0:00:44]} 30. Qd2 {[%emt 0:00:26]} Qb6 {[%emt 0:00:28]} 31. Nc1 {[%emt 0:01:11]} Nef6 {[%emt 0:00:43]} 32. Bd3 {[%emt 0:06:07]} Qb4 {[%emt 0:03:50]} 33. N1e2 {[%emt 0:02:30]} h4 {[%emt 0:07:09]} 34. Nb1 {[%emt 0:00:44]} Qb6 {[%emt 0:00:41]} 35. Nbc3 {[%emt 0:00:41]} g5 {[%emt 0:00:37]} 36. Na4 {[%emt 0:01:36]} Qa7 {[%emt 0:00:42]} 37. Nac3 {[%emt 0:01:29]} g4 {[%emt 0:00:16]} 38. hxg4 {[%emt 0:01:03]} Nxg4 {[%emt 0:00:14]} 39. Ke1 {[%emt 0:02:20]} Qf2+ {[%emt 0:03:06]} 40. Kd1 {[%emt 0:00:05]} Ne3+ {[%emt 0:01:56]} 41. Kc1 {[%emt 0:00:27]} Nxg2 {[%emt 0:01:05]} 42. Nd1 {[%emt 0:00:46]} Qc5+ {[%emt 0:00:32]} 43. Nec3 {[%emt 0:01:06]} h3 {[%emt 0:00:23]} 44. Bf1 {[%emt 0:00:25]} Nf4 {[%emt 0:01:58]} 45. Kb2 {[%emt 0:02:37]} Qg1 {[%emt 0:01:35]} 46. Ne3 {[%emt 0:01:04]} h2 {[%emt 0:00:42]} 0-1

[Event "XXI Torredembarra Open 2019"]
[Site "Torredembarra"]
[Date "2019.07.07"]
[Round "2.8"]
[White "Iagar, Razvan-Gabriel"]
[Black "Grau Ferrer, Carles"]
[Result "1-0"]
[ECO "D90"]
[WhiteElo "2138"]
[BlackElo "1815"]
[Annotator "NA"]
[PlyCount "133"]
[EventDate "2019.07.06"]
[EventType "swiss"]
[EventCountry "ESP"]
[SourceTitle "playchess.com"]
[Source "ChessBase"]
[SourceQuality "1"]
[TimeControl "5400+30"]

1. d4 {[%emt 0:00:00]} d5 {[%emt 0:00:03]} 2. c4 {[%emt 0:00:00]} c6 {[%emt 0:00:09]} 3. Nc3 {[%emt 0:00:00]} Nf6 {[%emt 0:00:26]} 4. cxd5 {[%emt 0:00:13]} cxd5 {[%emt 0:00:29]} 5. Bf4 {[%emt 0:00:07]} a6 {[%emt 0:00:38]} 6. e3 {[%emt 0:00:25]} g6 {[%emt 0:00:18]} 7. h3 {[%emt 0:01:08]} Bg7 {[%emt 0:00:06]} 8. Nf3 {[%emt 0:00:04]} O-O {[%emt 0:00:37]} 9. Bd3 {[%emt 0:01:11]} Nc6 {[%emt 0:00:36]} 10. O-O {[%emt 0:03:19]} Re8 {[%emt 0:02:32]} 11. Rc1 {[%emt 0:00:00]} h6 {[%emt 0:05:27]} 12. Bh2 {[%emt 0:02:08]} g5 {[%emt 0:00:00]} 13. Na4 {[%emt 0:01:59]} g4 {[%emt 0:00:00]} 14. hxg4 {[%emt 0:00:04]} Bxg4 {[%emt 0:00:14]} 15. Nc5 {[%emt 0:02:59]} Qb6 {[%emt 0:02:03]} 16. Qb3 {[%emt 0:04:43]} Qxb3 {[%emt 0:00:50]} 17. Nxb3 {[%emt 0:01:21]} Bxf3 {[%emt 0:04:27]} 18. gxf3 {[%emt 0:00:05]} e5 {[%emt 0:00:14]} 19. dxe5 {[%emt 0:00:35]} Nxe5 {[%emt 0:00:04]} 20. Be2 {[%emt 0:01:14]} b5 {[%emt 0:00:26]} 21. Nd4 {[%emt 0:01:49]} Ned7 {[%emt 0:04:51]} 22. Rc7 {[%emt 0:02:48]} Nf8 {[%emt 0:02:31]} 23. Rc6 {[%emt 0:02:48]} Ne6 {[%emt 0:00:05]} 24. Be5 {[%emt 0:12:58]} Nxd4 {[%emt 0:00:24]} 25. Bxd4 {[%emt 0:00:04]} Re6 {[%emt 0:00:31]} 26. Rfc1 {[%emt 0:00:44]} Rae8 {[%emt 0:00:03]} 27. Bf1 {[%emt 0:02:43]} Rxc6 {[%emt 0:00:21]} 28. Rxc6 {[%emt 0:00:03]} Re6 {[%emt 0:00:19]} 29. Rc8+ {[%emt 0:01:10]} Re8 {[%emt 0:01:40]} 30. Rc7 {[%emt 0:02:28]} Nh7 {[%emt 0:07:01]} 31. Bxg7 {[%emt 0:03:20]} Kxg7 {[%emt 0:00:02]} 32. Bd3 {[%emt 0:01:31]} Ng5 {[%emt 0:01:30]} 33. Kg2 {[%emt 0:00:14]} Re6 {[%emt 0:00:14]} 34. Rd7 {[%emt 0:00:47]} Rf6 {[%emt 0:01:13]} 35. f4 {[%emt 0:02:28]} Ne6 {[%emt 0:00:04]} 36. Rxd5 {[%emt 0:00:38]} Rxf4 {[%emt 0:00:08]} 37. Rd6 {[%emt 0:05:21]} Rf6 {[%emt 0:00:22]} 38. Rd5 {[%emt 0:01:36]} Nc7 {[%emt 0:01:01]} 39. Rc5 {[%emt 0:01:53]} Ne6 {[%emt 0:00:09]} 40. Rc8 {[%emt 0:00:09]} Nf8 {[%emt 0:01:15]} 41. Ra8 {[%emt 0:02:39]} Rd6 {[%emt 0:00:41]} 42. Be4 {[%emt 0:00:08]} Ne6 {[%emt 0:00:30]} 43. b4 {[%emt 0:01:26]} Rb6 {[%emt 0:01:15]} 44. Ra7 {[%emt 0:01:23]} Rd6 {[%emt 0:01:17]} 45. a3 {[%emt 0:01:23]} Ng5 {[%emt 0:01:11]} 46. Bf5 {[%emt 0:00:19]} Ne6 {[%emt 0:01:00]} 47. f4 {[%emt 0:02:32]} Kf6 {[%emt 0:00:07]} 48. Be4 {[%emt 0:00:21]} Kg7 {[%emt 0:06:49]} 49. Kf3 {[%emt 0:00:24]} Kf6 {[%emt 0:00:02]} 50. Kg4 {[%emt 0:03:39]} Ng7 {[%emt 0:01:16]} 51. Ra8 {[%emt 0:01:07]} h5+ {[%emt 0:01:18]} 52. Kf3 {[%emt 0:00:19]} Rb6 {[%emt 0:03:32]} 53. Ra7 {[%emt 0:02:29]} Rd6 {[%emt 0:00:14]} 54. Bb7 {[%emt 0:00:24]} Ne8 {[%emt 0:01:37]} 55. Bxa6 {[%emt 0:06:08]} Rb6 {[%emt 0:02:57]} 56. Bb7 {[%emt 0:01:23]} Ke6 {[%emt 0:02:30]} 57. Bc8+ {[%emt 0:00:30]} Kf6 {[%emt 0:00:50]} 58. Bd7 {[%emt 0:02:47]} Nd6 {[%emt 0:05:55]} 59. e4 {[%emt 0:00:12]} Nb7 {[%emt 0:00:02]} 60. Bc8 {[%emt 0:00:55]} Nd8 {[%emt 0:00:23]} 61. Ra6 {[%emt 0:03:29]} Rc6 {[%emt 0:00:01]} 62. Bb7 {[%emt 0:01:06]} Rxa6 {[%emt 0:00:03]} 63. Bxa6 {[%emt 0:00:04]} Nc6 {[%emt 0:00:04]} 64. Ke3 {[%emt 0:00:08]} Na7 {[%emt 0:00:33]} 65. Bb7 {[%emt 0:00:09]} Ke6 {[%emt 0:00:18]} 66. Kf3 {[%emt 0:01:32]} f5 {[%emt 0:00:06]} 67. e5 {[%emt 0:02:34]} 1-0